[Event "4NCL 2022-2023"]
[Site "Daventry"]
[Date "2023.03.18"]
[Round "7.10"]
[White "Healey, Michael W"]
[Black "Emms, John M"]
[Result "1/2-1/2"]
[ECO "B25"]
[WhiteElo "2124"]
[BlackElo "2467"]
[Annotator "TA"]
[PlyCount "106"]
[EventDate "2022.10.20"]
[EventType "team-tourn"]
[EventCountry "ENG"]
[SourceTitle "playchess.com"]
[Source "ChessBase"]
[SourceQuality "1"]
[TimeControl "40/6000+30:2400+30"]

{[%evp 17,106,0,9,-2,-16,-25,-23,-20,6,-24,-23,-12,-17,-12,-18,-58,-73,-69,-64,-58,-64,-58,-52,-81,-92,-129,-107,-104,-125,-130,-126,-135,-117,-123,-120,-124,-120,-173,-125,-203,-136,-134,-140,-136,-93,-228,-138,-206,-161,-190,-185,-175,-22,-33,0,0,0,0,0,0,0,0,0,0,0,0,0,0,0,0,0,0,0,-132,-117,-143,0,0,0,0,0,0,0,0,0,0,0,0,0,0,0]} 1. e4 {[%emt 0:00:09]} c5 {[%emt 0:01:25]} 2. Nc3 {[%emt 0:00:19]} Nc6 {[%emt 0:00:38]} 3. Nge2 {[%emt 0:00:38]} d6 {[%emt 0:01:36]} 4. g3 {[%emt 0:01:12]} g6 {[%emt 0:00:28]} 5. Bg2 {[%emt 0:00:52]} Bg7 {[%emt 0:00:17]} 6. O-O {[%emt 0:00:22]} Nf6 {[%emt 0:00:28]} 7. d3 {[%emt 0:00:18]} O-O {[%emt 0:00:07]} 8. f4 {[%emt 0:00:23]} Rb8 {[%emt 0:04:36]} 9. h3 {[%emt 0:03:30]} Nd7 {[%emt 0:01:28]} 10. Nd5 {[%emt 0:04:59] B25: Closed Sicilian: 3 g3, lines without early Be3.} b5 {[%emt 0:02:15]} 11. a3 {[%emt 0:04:45] [#]} e6 $146 {[%emt 0:32:06]} ({Predecessor:} 11... a5 12. g4 b4 13. c3 bxc3 14. bxc3 Ba6 15. g5 Re8 16. Ne3 Qc7 17. Ng4 Rf8 {1-0 Helin,M (1974)-Wengholm,A (2161) Vaxjo op 2018 (4)}) 12. Ne3 {[%emt 0:00:21] Black has an edge.} Ne7 {[%emt 0:01:37]} 13. Rb1 {[%emt 0:08:49]} Bb7 {[%emt 0:05:14]} 14. b4 {[%emt 0:12:35]} cxb4 {[%emt 0:12:22]} 15. Rxb4 {[%emt 0:01:30]} a6 {[%emt 0:01:45]} 16. Bb2 {[%emt 0:07:26]} Bxb2 {[%emt 0:01:37]} 17. Rxb2 {[%emt 0:00:06]} d5 {[%emt 0:09:19]} 18. exd5 {[%emt 0:09:11]} Qb6 {[%emt 0:07:05]} 19. d4 {[%emt 0:00:33]} Bxd5 {[%emt 0:01:22]} 20. Nxd5 {[%emt 0:10:38]} Nxd5 {[%emt 0:00:06]} 21. Qd2 {[%emt 0:00:51] Against Ne3} Qd6 $1 {[%emt 0:02:15]} 22. Rb3 {[%emt 0:03:52]} N7b6 {[%emt 0:02:33]} 23. g4 {[%emt 0:00:56]} Nc4 {[%emt 0:05:46][%csl LRa3,LRd2]} 24. Qc1 {[%emt 0:00:04]} Rbc8 {[%emt 0:01:04]} 25. Rd3 {[%emt 0:02:28]} Rfe8 {[%emt 0:00:57]} 26. Ng3 {[%emt 0:00:32]} f5 $1 {[%emt 0:02:03] Prevents Ne4} 27. Rf2 {[%emt 0:10:03] [#]} (27. Bxd5 $17 {is a better defense.} Qxd5 28. Rff3) 27... Rc7 {[%emt 0:01:13]} ({Black should play} 27... Ncb6 $1 $19 28. Ne2 Rc4) 28. h4 {[%emt 0:01:54]} (28. Bxd5 $17 exd5 29. gxf5) 28... Nf6 {[%emt 0:06:13]} 29. g5 {[%emt 0:00:51]} Nd5 {[%emt 0:00:21]} 30. h5 {[%emt 0:01:16]} Rec8 {[%emt 0:00:44][%cal Oc4e3]} 31. Qe1 {[%emt 0:06:55] Wards off Nce3} (31. Bxd5 $17 {might work better.} exd5 32. Rh2) 31... Ncb6 {[%emt 0:01:03][%cal Bc4b6,Bb6d5,Bd5e3][%mdl 32] Excellent horsemanship.} (31... Nxa3 32. Bxd5 exd5 33. hxg6 hxg6 34. Rxa3 Qxa3 35. Qe6+ Kf8 36. Qf6+ Rf7 37. Qh8+ (37. Qxg6 $2 Qxg3+ 38. Kf1 Qh3+ 39. Kg1 Re8 $19) 37... Ke7 38. Qxc8 $11) (31... Nxf4 32. Rxf4 Nb2 33. Rdf3 $18) 32. Ne2 {[%emt 0:03:50]} (32. hxg6 $17 hxg6 33. Ne2) 32... Rxc2 {[%emt 0:01:04]} 33. hxg6 {[%emt 0:00:09]} hxg6 {[%emt 0:00:13]} 34. Rh3 {[%emt 0:00:06]} Qe7 $2 {[%emt 0:03:09]} (34... Kf8 $19 {[%cal Oc2e2] ...Rxe2! is the strong threat.} 35. Bf1 Ne7) 35. Rh6 {[%emt 0:11:28] Prevents Rxe2.} Qg7 {[%emt 0:00:16] Prevents Nc3} (35... Ne3 {looks sharper.} 36. Rxg6+ Kf8 37. a4 Nbd5) 36. Bxd5 {[%emt 0:02:20]} Nxd5 {[%emt 0:01:37]} 37. Nc3 $1 {[%emt 0:00:12][%mdl 64] Discovered Attack} Rc1 {[%emt 0:01:49]} 38. Qxc1 {[%emt 0:00:34][%cal Oc1e1]} Rxc3 {[%emt 0:00:02]} 39. Qe1 {[%emt 0:00:15]} Kf7 $36 {[%emt 0:00:53][%mdl 2048] Black is pushing.} (39... Rxa3 $2 40. Qxe6+ Kf8 41. Qxd5 $18) 40. Qe5 {[%emt 0:02:06] Strongly threatening Qd6.} Ne3 {[%emt 0:00:39] Threatens to win with ...Rc1+.} (40... Rxa3 $2 41. Qb8 Ra1+ 42. Kg2 $18) 41. Qd6 {[%emt 0:00:00]} Rc1+ {[%emt 0:00:54]} 42. Kh2 {[%emt 0:00:00]} Ng4+ {[%emt 0:00:23]} 43. Kg2 {[%emt 0:00:00][%cal Of2e2] White threatens Re2! and mate. Chess con chili.} Nxh6 {[%emt 0:00:29]} 44. Re2 {[%emt 0:00:00]} Kg8 {[%emt 0:03:07]} 45. gxh6 $11 {[%emt 0:14:01][%mdl 4096] Endgame KQR-KQR} (45. Rxe6 $1 $11 Nf7 46. Qb8+ Kh7 47. Re7) 45... Qb7+ $17 {[%emt 0:03:58]} (45... Qxh6 46. Qxe6+ Kh7 47. Qe7+ Kg8 48. Qe8+ Qf8 49. Qxg6+ Kh8 50. Re8 $18 (50. Qxa6 {gets mated.} Qg8+) (50. Qxa6 Qg8+)) 46. Kf2 {[%emt 0:00:27] [#]} Qd5 {[%emt 0:08:00]} (46... Rc6 $1 $17 {[%cal Rc6d6]} 47. Qe5 Kh7) 47. Qxe6+ $11 {[%emt 0:03:40] The position is equal.} (47. Qxa6 {leads to mate.} Qxd4+ 48. Kg3 Qg1+ 49. Rg2 Qe3+ 50. Kh4 Qxf4+ 51. Kh3 Rh1+) 47... Qxe6 {[%emt 0:00:06]} 48. Rxe6 {[%emt 0:00:03] KR-KR} Kh7 {[%emt 0:03:11]} 49. Rxa6 {[%emt 0:02:03]} Kxh6 {[%emt 0:03:06]} 50. Ke2 {[%emt 0:01:11]} Kh5 {[%emt 0:01:35]} 51. Kd2 {[%emt 0:02:19]} Rf1 {[%emt 0:07:02]} 52. Ke3 {[%emt 0:00:46]} Re1+ {[%emt 0:01:48]} 53. Kf3 {[%emt 0:00:34]} Rd1 {[%emt 0:08:50] Whites escaped into a draw. A brilliant game!   Weighted Error Value: White=0.18 (very precise) /Black=0.19 (very precise)} 1/2-1/2

[Event "4NCL 2022-2023"]
[Site "Daventry"]
[Date "2023.03.18"]
[Round "7.11"]
[White "Colovic, Aleksandar"]
[Black "Serbanescu, Diana-Maria"]
[Result "1-0"]
[ECO "B07"]
[WhiteElo "2440"]
[BlackElo "1978"]
[Annotator "TA"]
[PlyCount "67"]
[EventDate "2022.10.20"]
[EventType "team-tourn"]
[EventCountry "ENG"]
[SourceTitle "playchess.com"]
[Source "ChessBase"]
[SourceQuality "1"]
[TimeControl "40/6000+30:2400+30"]

{[%evp 12,67,46,40,43,30,36,31,50,50,57,41,45,33,53,47,56,60,61,37,41,43,43,26,58,45,83,68,83,45,83,52,84,64,86,96,84,85,89,80,227,237,370,202,354,348,354,358,342,364,485,470,29986,29987,29991,29992,29992,29991]} 1. e4 {[%emt 0:00:16]} d6 {[%emt 0:00:09]} 2. d4 {[%emt 0:00:44]} Nf6 {[%emt 0:00:07]} 3. Bd3 {[%emt 0:00:22]} e5 {[%emt 0:01:08]} 4. Nf3 {[%emt 0:00:16]} Nbd7 {[%emt 0:01:33]} 5. O-O {[%emt 0:00:29]} Be7 {[%emt 0:06:28]} 6. c3 {[%emt 0:01:10]} O-O {[%emt 0:01:43]} 7. Re1 {[%emt 0:00:15]} Re8 {[%emt 0:02:42] B07: Pirc Defence: Miscellaneous Systems.} 8. Nbd2 {[%emt 0:01:55][%cal Bb1d2,Bd2f1,Bf1g3][%mdl 32]} Bf8 {[%emt 0:02:01]} 9. Nf1 {[%emt 0:02:44]} g6 {[%emt 0:02:32] White is slightly better.} 10. Ng3 {[%emt 0:00:19]} Bg7 {[%emt 0:00:08]} 11. h3 {[%emt 0:01:27] [#]} a6 $146 {[%emt 0:04:50]} ({Predecessor:} 11... b6 12. a4 a6 13. Bg5 Bb7 14. Qd2 c5 15. d5 Qc7 16. c4 Bc8 17. Bh6 Nf8 {½-½ Odeev,H (2415)-Sadikhov,U (2484) Cesme op 6th 2018 (6)}) 12. Bg5 {[%emt 0:08:42]} h6 {[%emt 0:01:40]} 13. Be3 {[%emt 0:00:04]} Qe7 {[%emt 0:04:04]} 14. Qd2 {[%emt 0:04:56]} Kh7 {[%emt 0:00:31]} 15. Bc2 {[%emt 0:04:06]} b6 {[%emt 0:15:14]} 16. Rad1 {[%emt 0:02:14]} Bb7 {[%emt 0:00:44]} 17. d5 {[%emt 0:00:14]} Rf8 {[%emt 0:03:15]} 18. c4 {[%emt 0:04:57]} a5 {[%emt 0:02:15]} 19. b3 {[%emt 0:04:22]} Ba6 {[%emt 0:11:34]} 20. Qc3 {[%emt 0:13:25]} Ng8 {[%emt 0:05:26]} 21. a3 {[%emt 0:06:59][%cal Ba2a3,Ba3b4][%mdl 32] White has more active pieces.} Kh8 {[%emt 0:04:13]} 22. Bb1 {[%emt 0:09:22]} Nc5 {[%emt 0:06:05]} 23. b4 {[%emt 0:03:57]} axb4 {[%emt 0:00:42]} 24. axb4 {[%emt 0:00:01]} Nd7 {[%emt 0:02:35]} 25. Bd3 {[%emt 0:05:10][%cal Bb1d3,Bd3e4,Be4g6][%mdl 32]} f5 {[%emt 0:05:40] This move loses the game for Black.} 26. exf5 $18 {[%emt 0:00:20]} e4 {[%emt 0:00:06]} (26... g5 {is a better defense.} 27. b5 Bb7) 27. f6 {[%emt 0:10:00]} (27. Bd4 $142 gxf5 28. Nh4 Bxd4 29. Qxd4+ Qf6 30. Ng6+ Kh7 31. Nxf8+ Nxf8 32. Be2) 27... Rxf6 $2 {[%emt 0:11:23] [#]} (27... Bxf6 {keeps fighting.} 28. Bd4 Ne5) 28. Bd4 {[%emt 0:01:04]} ({Worse is} 28. Bxe4 Rxf3 29. Qc2 Rff8 30. Bxg6 Ne5 $17) 28... Rxf3 {[%emt 0:02:56]} 29. gxf3 {[%emt 0:05:36]} Ne5 {[%emt 0:00:15]} 30. Bxe4 {[%emt 0:00:25]} (30. fxe4 $2 {too greedy.} Nf3+ 31. Kg2 Bxd4 $19) 30... Qh4 {[%emt 0:01:50]} 31. Bxg6 {[%emt 0:07:29][%mdl 64] [#] Pin} Qxh3 {[%emt 0:00:40]} (31... Rf8 $18) 32. Rxe5 {[%emt 0:02:05] White mates.} dxe5 {[%emt 0:00:06]} 33. Bxe5 {[%emt 0:00:03][%csl Gc3][%cal Re5g7]} Qd7 {[%emt 0:00:09]} 34. Nh5 {[%emt 0:00:53] Weighted Error Value: White=0.17 (very precise) /Black=0.55} 1-0

[Event "4NCL 2022-2023"]
[Site "Daventry"]
[Date "2023.03.18"]
[Round "7.12"]
[White "Skulte, Christopher"]
[Black "Camacho Collados, Marcos"]
[Result "0-1"]
[ECO "B41"]
[WhiteElo "2086"]
[BlackElo "2460"]
[Annotator "TA"]
[PlyCount "70"]
[EventDate "2022.10.20"]
[EventType "team-tourn"]
[EventCountry "ENG"]
[SourceTitle "playchess.com"]
[Source "ChessBase"]
[SourceQuality "1"]
[TimeControl "40/6000+30:2400+30"]

{[%evp 10,70,17,22,25,25,20,25,29,27,27,0,12,21,44,52,49,28,47,26,75,39,40,4,30,18,47,30,84,78,124,155,149,0,7,-31,-37,-48,0,-55,-16,0,0,-81,0,-116,116,0,84,85,378,-693,-682,-668,-635,-629,-598,-1191,-907,-1872,-1901,-29988,-1454]} 1. e4 {[%emt 0:00:01]} c5 {[%emt 0:00:12]} 2. Nf3 {[%emt 0:01:37]} e6 {[%emt 0:00:14]} 3. d4 {[%emt 0:01:54]} cxd4 {[%emt 0:00:11]} 4. Nxd4 {[%emt 0:00:38]} a6 {[%emt 0:00:09]} 5. Be2 {[%emt 0:04:58]} Nf6 {[%emt 0:03:38]} 6. Qd3 {[%emt 0:02:13]} Qc7 {[%emt 0:14:40] B41: Sicilian: Kan Variation: 5 c4.} 7. O-O {[%emt 0:20:10]} Nc6 {[%emt 0:08:31]} 8. Nxc6 {[%emt 0:09:24]} bxc6 {[%emt 0:00:39] White has an edge.} 9. c4 {[%emt 0:01:09]} Bb7 {[%emt 0:08:18]} 10. f4 {[%emt 0:05:58]} d5 {[%emt 0:05:29]} 11. Nc3 {[%emt 0:03:26] [#]} Rd8 $146 {[%emt 0:09:29]} ({Predecessor:} 11... Bc5+ 12. Kh1 dxe4 13. Nxe4 Rd8 14. Nxf6+ gxf6 15. Qh3 Bd4 16. Qh6 c5 17. f5 Qe5 {0-1 Kritsotalakis,S-Papadakis,M (2240) Heraklion op 7th 2011 (5)}) 12. e5 {[%emt 0:09:13]} Nd7 {[%emt 0:01:01]} 13. Qg3 {[%emt 0:11:08]} g6 {[%emt 0:21:05]} 14. Kh1 {[%emt 0:05:13]} Bg7 {[%emt 0:04:00]} (14... Nb6 $11) 15. cxd5 {[%emt 0:07:06]} cxd5 {[%emt 0:03:47]} 16. b3 {[%emt 0:05:16][%cal Bb2b3,Bb3b4][%mdl 32]} (16. Be3 $5 {[%cal Ra1c1]}) 16... Bf8 {[%emt 0:14:31]} (16... Rc8 $5 {[%cal Rc7c3]} 17. Na4 O-O $11) 17. Bb2 {[%emt 0:05:36]} Qb8 {[%emt 0:07:54]} 18. Rac1 {[%emt 0:06:22]} Nc5 {[%emt 0:01:12]} (18... Be7 $11) 19. b4 $16 {[%emt 0:02:19]} Ne4 {[%emt 0:01:05]} (19... Nd7 $142) 20. Nxe4 {[%emt 0:00:18]} dxe4 {[%emt 0:00:02]} 21. Qb3 {[%emt 0:03:45]} (21. b5 $16) 21... Be7 $1 $11 {[%emt 0:00:57]} 22. Qa4+ {[%emt 0:00:12]} Kf8 {[%emt 0:00:54]} 23. Rfd1 {[%emt 0:00:20]} Kg7 {[%emt 0:01:15]} (23... e3 $15) 24. Rd7 {[%emt 0:00:54]} (24. Bxa6 Bxa6 25. Qxa6 Qxb4 $19) (24. Bd4 $11) 24... Rxd7 {[%emt 0:01:04]} (24... Rhe8 $5 {[%cal Rd8d7]}) 25. Qxd7 {[%emt 0:00:04]} Re8 {[%emt 0:00:46]} 26. Rc7 {[%emt 0:00:30] [#]} (26. a3 $1 $11 {keeps the balance.}) 26... Bd5 {[%emt 0:01:17]} (26... Bc8 $1 $17 {[%cal Rc8d7]} 27. Qc6 (27. Qxe8 Qxc7 28. Qa4 Qb6 $17) 27... Qxb4) 27. a3 {[%emt 0:00:27]} (27. Bxa6 $2 Qxb4 28. Qb5 Rb8 29. Qxb4 Rxb4 $19) (27. h3 $1 $11) 27... Qa8 $2 {[%emt 0:01:02] Black is weak on the dark squares} (27... Qb6 $1 $17 {[%cal Rb6f2] keeps the pressure on.} 28. Rc1 (28. Qxe8 Qxc7 29. Qa4 a5 $17) 28... Kf8) 28. Ra7 {[%emt 0:03:23]} ({White should play} 28. Bd4 $16 {Bc5 would be deadly.} e3 29. Bxe3) 28... Qb8 {[%emt 0:00:01] [#]} (28... Qc8 $11 29. Qc7 (29. Bxa6 $2 Qc2 $19) (29. Qxc8 $2 Rxc8 30. Bd1 Bd8 $19) 29... a5) 29. Bd4 $1 $16 {[%emt 0:00:10]} (29. Rxa6 $2 Bxb4 30. axb4 Qxb4 $17) (29. Bxa6 Qb6 30. Qxe8 Qxa7 $15) 29... Kh6 $2 {[%emt 0:01:04][%mdl 8192]} (29... Qc8 $16 30. Qc7 (30. Bxa6 $2 {is the wrong capture.} Qc2 $19) (30. Qxc8 Rxc8 31. Kg1 Kf8 $11) 30... Qxc7 31. Rxc7 g5) 30. Bc5 $4 {[%emt 0:00:36][%mdl 8192]} ({Less strong is} 30. Rxa6 Qc8 31. Ra7 Kg7 $18) (30. Bxa6 $18 Qd8 31. Qxd8 Bxd8 32. Rxf7) 30... Bxc5 $19 {[%emt 0:00:10]} 31. Qxf7 {[%emt 0:01:08][%csl Ga7][%cal Rf7h7]} Qxa7 {[%emt 0:00:45]} (31... Bxa7 $2 32. g4 $18) 32. Qxe8 {[%emt 0:00:10]} Be7 {[%emt 0:00:20][%cal Oa7f2]} 33. g4 {[%emt 0:00:09] Qf7 is the strong threat.} Kg7 {[%emt 0:00:43] Dodges Qf7+} 34. f5 {[%emt 0:00:17]} exf5 {[%emt 0:00:12] ( -> ...Qc7)} 35. gxf5 {[%emt 0:00:06]} gxf5 {[%emt 0:00:11] Weighted Error Value: White=0.88/Black=0.55} (35... Kh6 $142 36. Qa4 Qf2 37. Qd1 Bg5 38. Bc4 Ba8 39. Be2 e3+ 40. Bf3 Bf4 41. Qg1 Bxf3+ 42. Qg2 Bxg2#) 0-1

[Event "4NCL 2022-2023"]
[Site "Daventry"]
[Date "2023.03.18"]
[Round "7.13"]
[White "Wells, Peter K"]
[Black "Franco, Gaston"]
[Result "1/2-1/2"]
[ECO "E05"]
[WhiteElo "2361"]
[BlackElo "2028"]
[Annotator "TA"]
[PlyCount "80"]
[EventDate "2022.10.20"]
[EventType "team-tourn"]
[EventCountry "ENG"]
[SourceTitle "playchess.com"]
[Source "ChessBase"]
[SourceQuality "1"]
[TimeControl "40/6000+30:2400+30"]

{[%evp 12,80,35,16,16,22,24,0,12,0,15,10,0,9,9,0,0,0,0,0,0,0,8,13,29,18,76,73,123,92,79,83,71,76,76,85,86,75,70,67,104,77,92,66,83,18,23,23,75,0,0,0,18,-14,0,0,0,0,0,0,0,0,0,0,0,0,0,0,0,0,0]} 1. d4 {[%emt 0:04:48]} d5 {[%emt 0:00:12][%cal Bd7d5,Bd5c4][%mdl 32]} 2. c4 {[%emt 0:00:15]} e6 {[%emt 0:00:06]} 3. Nf3 {[%emt 0:00:20]} Nf6 {[%emt 0:00:06]} 4. g3 {[%emt 0:00:13]} Be7 {[%emt 0:00:10]} 5. Bg2 {[%emt 0:00:07]} O-O {[%emt 0:00:09]} 6. O-O {[%emt 0:01:17]} dxc4 {[%emt 0:00:17]} 7. Qc2 {[%emt 0:00:42]} b6 {[%emt 0:00:20] E05: Open Catalan: 5 Nf3 Be7.} 8. Bg5 {[%emt 0:09:14]} Nd5 {[%emt 0:00:33]} 9. h4 {[%emt 0:05:45]} h6 {[%emt 0:02:45]} 10. Bxe7 {[%emt 0:06:54]} Qxe7 {[%emt 0:00:32] [#]} 11. Qxc4 $146 {[%emt 0:07:10]} ({Predecessor:} 11. Nbd2 Bb7 12. Nxc4 c5 13. dxc5 Qxc5 14. Rac1 Nd7 15. a3 Rac8 16. b4 Qe7 17. Qb2 {½-½ Gonda,L (2536)-Martino,E (2156) Amantea op 16th 2018 (1)}) 11... Ba6 {[%emt 0:05:04]} 12. Qc2 {[%emt 0:02:13]} Nd7 {[%emt 0:00:22]} 13. Re1 {[%emt 0:18:23]} c5 {[%emt 0:08:35]} 14. Nc3 {[%emt 0:04:20]} Nxc3 {[%emt 0:14:20]} 15. Qxc3 {[%emt 0:01:03]} Bb7 {[%emt 0:05:05]} 16. Rac1 {[%emt 0:13:09]} Rfc8 {[%emt 0:07:10]} 17. Red1 {[%emt 0:11:48]} Nf6 {[%emt 0:09:11]} 18. Qa3 {[%emt 0:01:29]} Ne4 {[%emt 0:13:08]} (18... Rc7 $11 {remains equal.}) 19. Ne5 $16 {[%emt 0:04:45]} Qf6 {[%emt 0:00:42]} (19... Rc7 $142) 20. Bxe4 {[%emt 0:01:05]} Bxe4 {[%emt 0:41:43] [#]} 21. Qe3 {[%emt 0:00:13]} Bd5 {[%emt 0:00:00]} 22. dxc5 {[%emt 0:02:12]} bxc5 {[%emt 0:00:00]} 23. b3 {[%emt 0:01:15] White is more active.} Rc7 {[%emt 0:00:00]} 24. Rd2 {[%emt 0:05:48]} ({And not} 24. Rxc5 Rxc5 25. Nd7 Qf5 26. Nxc5 Qh3 $17) 24... a5 {[%emt 0:00:00]} 25. Rdc2 {[%emt 0:02:00]} (25. Rxc5 $2 {perishes.} Rxc5 26. Qxc5 Qxe5 $19) 25... Rac8 {[%emt 0:00:00][%cal Oa5a4]} 26. f3 {[%emt 0:01:34]} (26. Rxc5 $2 {too greedy.} Rxc5 27. Rxc5 Rxc5 28. Qxc5 Qxe5 $19) 26... Qe7 {[%emt 0:00:00][%cal Oa5a4]} 27. Qf4 {[%emt 0:04:19]} f6 {[%emt 0:00:00] [#]} 28. Ng6 {[%emt 0:00:32]} ({White should play} 28. Nc4 $1 $16) 28... Qe8 $11 {[%emt 0:00:00]} 29. h5 {[%emt 0:00:48]} e5 {[%emt 0:00:00]} (29... a4 $11 {keeps the balance.}) 30. Qg4 {[%emt 0:01:00]} (30. Qd2 $16 Bf7 31. Qxa5) 30... Bf7 {[%emt 0:00:00] The position is equal.} 31. Kf2 {[%emt 0:00:42]} Kh7 {[%emt 0:00:00]} 32. Rd1 {[%emt 0:00:33]} (32. Qe4 $5 {[%cal Rg6e7]} Bxg6 33. hxg6+ Qxg6 34. Qa4 $11) 32... Bxg6 {[%emt 0:00:00]} (32... c4 {is more complex.} 33. bxc4 a4 34. Rdc1 Rc5) 33. hxg6+ {[%emt 0:00:04]} Qxg6 {[%emt 0:00:00]} 34. Qxg6+ {[%emt 0:00:18]} Kxg6 {[%emt 0:00:00][%mdl 4096] Endgame KRR-KRR} 35. Rc4 {[%emt 0:00:12]} Kf5 {[%emt 0:00:00]} 36. Rd6 {[%emt 0:00:24]} Rc6 {[%emt 0:00:00] Prevents Ra6} 37. Rd7 {[%emt 0:00:22]} R8c7 {[%emt 0:00:00]} 38. Rd8 {[%emt 0:00:22]} Rc8 {[%emt 0:00:00]} 39. Rd7 {[%emt 0:00:20]} R8c7 {[%emt 0:00:00]} 40. Rd8 {[%emt 0:00:15]} Rc8 {[%emt 0:00:00] Weighted Error Value: White=0.12 (very precise) /Black=0.12 (very precise)} 1/2-1/2

[Event "4NCL 2022-2023"]
[Site "Daventry"]
[Date "2023.03.18"]
[Round "7.14"]
[White "Pedersen, Carsten"]
[Black "Adair, James R"]
[Result "0-1"]
[ECO "B23"]
[WhiteElo "2088"]
[BlackElo "2449"]
[Annotator "TA"]
[PlyCount "91"]
[EventDate "2022.10.20"]
[EventType "team-tourn"]
[EventCountry "ENG"]
[SourceTitle "playchess.com"]
[Source "ChessBase"]
[SourceQuality "1"]
[TimeControl "40/6000+30:2400+30"]

{[%evp 9,91,20,11,8,9,10,17,0,0,12,14,0,-4,-19,0,0,0,-33,-26,-18,-9,-33,-37,-30,-32,-42,-48,-46,-35,-38,-14,-35,-31,-45,-43,-41,-10,-9,-7,-16,0,0,10,4,0,0,91,83,121,120,123,113,143,137,138,137,131,77,109,76,75,79,79,60,63,65,66,58,62,22,29,22,66,64,29967,29956,29994,29995,29995,29996,29996,29997,29997,29998]} 1. e4 {[%emt 0:00:02]} c5 {[%emt 0:00:20]} 2. Nc3 {[%emt 0:00:07]} d6 {[%emt 0:00:19]} 3. Bb5+ {[%emt 0:00:33]} Bd7 {[%emt 0:00:50]} 4. Bxd7+ {[%emt 0:00:09]} Qxd7 {[%emt 0:00:19]} 5. d4 {[%emt 0:00:49]} cxd4 {[%emt 0:00:18]} 6. Qxd4 {[%emt 0:00:06] B23: Closed Sicilian: Lines without g3.} Nc6 {[%emt 0:00:24]} 7. Qd3 {[%emt 0:00:04]} g6 {[%emt 0:01:27]} 8. Nf3 {[%emt 0:00:12] The position is equal.} Bg7 {[%emt 0:00:08]} 9. O-O {[%emt 0:02:36]} Nf6 {[%emt 0:00:26]} 10. Bg5 {[%emt 0:03:25]} h6 {[%emt 0:03:08] [#]} 11. Bc1 $146 {[%emt 0:18:25]} ({Predecessor:} 11. Bh4 g5 12. Bg3 Nh5 13. Rad1 O-O 14. Nd5 Nxg3 15. hxg3 Rfd8 16. c3 Rac8 17. Ne3 {½-½ Can,E (2600)-Xu,Y (2502) SCO National Chess Online rapid 2022 (2)}) 11... Rc8 {[%emt 0:06:25]} 12. Rd1 {[%emt 0:03:08]} O-O {[%emt 0:20:50]} 13. a3 {[%emt 0:30:03][%cal Oe4e5]} (13. e5 $5 {[%cal Re5f6]} Ne8 14. exd6 $11) 13... Ng4 {[%emt 0:08:23]} 14. Nd5 {[%emt 0:02:12]} Rfd8 {[%emt 0:03:32]} 15. h3 {[%emt 0:07:37]} Nge5 {[%emt 0:01:12]} 16. Nxe5 {[%emt 0:00:06]} Nxe5 {[%emt 0:00:05]} 17. Qe2 {[%emt 0:00:05]} e6 {[%emt 0:04:02]} 18. Nf4 {[%emt 0:05:47]} Qc6 {[%emt 0:08:52]} 19. c3 {[%emt 0:00:12]} b5 {[%emt 0:01:14]} 20. Nd3 {[%emt 0:02:32]} Nc4 {[%emt 0:04:01]} 21. Bf4 {[%emt 0:03:39]} a5 {[%emt 0:03:43]} 22. e5 {[%emt 0:05:08]} d5 {[%emt 0:00:54]} 23. b3 {[%emt 0:00:35]} Nb6 {[%emt 0:00:24]} 24. Be3 {[%emt 0:00:31]} Nd7 {[%emt 0:07:55]} 25. Bd4 {[%emt 0:00:07]} Qc7 {[%emt 0:02:11]} 26. Qe3 {[%emt 0:04:08]} a4 {[%emt 0:03:20]} 27. b4 {[%emt 0:03:47]} Nb8 {[%emt 0:03:56]} (27... Re8 $11) 28. Bb6 $16 {[%emt 0:01:20][%mdl 64] [#] Skewer, Deflection} Qb7 {[%emt 0:00:28]} 29. Bxd8 {[%emt 0:01:06]} Rxd8 {[%emt 0:00:02]} 30. f4 {[%emt 0:02:13]} Rc8 {[%emt 0:00:41][%cal Bd8c8,Bc8c6,Bc6c4,Bc4e4][%mdl 32]} 31. Ne1 {[%emt 0:02:16]} Nd7 {[%emt 0:26:11]} 32. Nf3 {[%emt 0:02:53]} Nb6 {[%emt 0:00:00]} 33. Nd2 {[%emt 0:00:51]} (33. Re1 $142) 33... Rc6 {[%emt 0:00:00]} 34. Qd3 {[%emt 0:00:56]} Nc4 {[%emt 0:00:00]} 35. Nxc4 {[%emt 0:05:22]} Rxc4 {[%emt 0:00:00]} 36. Qg3 {[%emt 0:00:54]} Qc7 {[%emt 0:00:00]} ({Weaker is} 36... Qc6 37. Rd3 $16) 37. Rd3 $1 {[%emt 0:00:12]} g5 {[%emt 0:00:00]} 38. Rf1 {[%emt 0:02:20]} ({Of course not} 38. fxg5 Bxe5 39. Qe3 Bf4 $11) 38... Re4 {[%emt 0:00:00]} 39. fxg5 {[%emt 0:02:11]} (39. f5 $5 {[%cal Rf5f6]}) 39... Bxe5 {[%emt 0:00:00]} 40. Qf3 {[%emt 0:00:07]} hxg5 {[%emt 0:00:00]} 41. Qh5 $1 {[%emt 0:40:58]} Bxc3 $2 {[%emt 0:13:36][%mdl 8192] [#] Loses the game.} (41... Qe7 $14) 42. Rxc3 $1 {[%emt 0:00:00][%mdl 512] White mates.} Qxc3 {[%emt 0:00:47]} (42... Rc4 43. Qxg5+) 43. Qxf7+ {[%emt 0:00:00]} Kh8 {[%emt 0:00:04]} 44. Qf8+ {[%emt 0:00:00]} Kh7 {[%emt 0:00:19]} 45. Rf7+ {[%emt 0:00:00]} Kg6 {[%emt 0:00:03]} 46. Qg8+ {[%emt 0:00:00][%mdl 32832] Skewer.   Weighted Error Value: White=0.08 (flawless) /Black=0.31. Loss on time!?} 0-1